[Event "*** Titled Tuesday Blitz"]
[Site "Chess.com"]
[Date "2020.05.26"]
[Round "4"]
[White "penguingm1"]
[Black "GoltsevDmitry2000"]
[Result "1-0"]
[WhiteElo "2868"]
[BlackElo "2688"]
[TimeControl "180+1"]
[EndTime "10:43:04 PDT"]
[Termination "penguingm1 won by resignation"]

1. d4 {[%clk 0:03:00.9]} 1... Nf6 {[%clk 0:02:57]} 2. c4 {[%clk 0:03:01.1]} 2...
g6 {[%clk 0:02:56.2]} 3. f3 {[%clk 0:03:01.4]} 3... Bg7 {[%clk 0:02:56.1]} 4. e4
{[%clk 0:03:01.5]} 4... d6 {[%clk 0:02:54.5]} 5. Nc3 {[%clk 0:03:02]} 5... O-O
{[%clk 0:02:53.6]} 6. Nge2 {[%clk 0:03:02.5]} 6... a5 {[%clk 0:02:51.6]} 7. Bg5
{[%clk 0:03:01.5]} 7... h6 {[%clk 0:02:51.2]} 8. Be3 {[%clk 0:03:01.7]} 8... Na6
{[%clk 0:02:51]} 9. Qd2 {[%clk 0:03:01.8]} 9... Kh7 {[%clk 0:02:50.6]} 10. g4
{[%clk 0:03:02.1]} 10... e5 {[%clk 0:02:46.6]} 11. d5 {[%clk 0:03:01.9]} 11...
Nc5 {[%clk 0:02:46.1]} 12. Ng3 {[%clk 0:03:02.2]} 12... b6 {[%clk 0:02:41.5]}
13. h4 {[%clk 0:03:02.2]} 13... Ng8 {[%clk 0:02:36]} 14. Be2 {[%clk 0:02:56]}
14... Bd7 {[%clk 0:02:31.8]} 15. Kf2 {[%clk 0:02:50.7]} 15... Ne7 {[%clk
0:02:27.8]} 16. Rag1 {[%clk 0:02:50.3]} 16... a4 {[%clk 0:01:56.2]} 17. Ke1
{[%clk 0:02:48]} 17... Qe8 {[%clk 0:01:50.7]} 18. Kd1 {[%clk 0:02:42.4]} 18...
Qd8 {[%clk 0:01:45.5]} 19. Kc1 {[%clk 0:02:42]} 19... Nc8 {[%clk 0:01:41.1]} 20.
Bd1 {[%clk 0:02:36.3]} 20... Ne7 {[%clk 0:01:32.1]} 21. Bc2 {[%clk 0:02:36.3]}
21... Qe8 {[%clk 0:01:20.1]} 22. Qe2 {[%clk 0:02:35.3]} 22... Qc8 {[%clk
0:01:17.5]} 23. Rh2 {[%clk 0:02:33.9]} 23... Rb8 {[%clk 0:01:09.9]} 24. Nf1
{[%clk 0:02:06.7]} 24... Qe8 {[%clk 0:01:04]} 25. Nd2 {[%clk 0:01:50.7]} 25...
Nc8 {[%clk 0:01:00]} 26. Ndb1 {[%clk 0:01:43.4]} 26... Na7 {[%clk 0:00:59.4]}
27. Na3 {[%clk 0:01:43.9]} 27... Na6 {[%clk 0:00:46.4]} 28. Nab5 {[%clk
0:01:41.1]} 28... Nxb5 {[%clk 0:00:45.7]} 29. cxb5 {[%clk 0:01:38.5]} 29... Nc5
{[%clk 0:00:46]} 30. Qc4 {[%clk 0:01:34.1]} 30... Ra8 {[%clk 0:00:41.2]} 31. b4
{[%clk 0:01:05]} 31... axb3 {[%clk 0:00:39.5]} 32. axb3 {[%clk 0:01:04.9]} 32...
Qd8 {[%clk 0:00:36.3]} 33. b4 {[%clk 0:01:04.2]} 33... Nb7 {[%clk 0:00:35.1]}
34. Kb2 {[%clk 0:01:04.6]} 34... Qb8 {[%clk 0:00:24.5]} 35. Bd3 {[%clk
0:01:00.3]} 35... Rc8 {[%clk 0:00:17.6]} 36. Rc2 {[%clk 0:00:56.5]} 36... Nd8
{[%clk 0:00:17.1]} 37. Qb3 {[%clk 0:00:49.6]} 37... Qa7 {[%clk 0:00:15.7]} 38.
Rcc1 {[%clk 0:00:48.3]} 38... f6 {[%clk 0:00:13.4]} 39. Ne2 {[%clk 0:00:42.3]}
39... Qb7 {[%clk 0:00:12.8]} 40. Rg2 {[%clk 0:00:42.3]} 40... Ra7 {[%clk
0:00:11.3]} 41. g5 {[%clk 0:00:37.2]} 41... fxg5 {[%clk 0:00:10.2]} 42. hxg5
{[%clk 0:00:36]} 42... h5 {[%clk 0:00:10.7]} 43. Bd2 {[%clk 0:00:33.3]} 43...
Rca8 {[%clk 0:00:10.9]} 44. Bc3 {[%clk 0:00:33.5]} 44... Nf7 {[%clk 0:00:10.4]}
45. Rf1 {[%clk 0:00:20.6]} 45... Qc8 {[%clk 0:00:06.2]} 46. Rh1 {[%clk 0:00:19]}
46... Qe8 {[%clk 0:00:05.3]} 47. Qc4 {[%clk 0:00:18.6]} 47... Ra2+ {[%clk
0:00:05.3]} 48. Kb1 {[%clk 0:00:15.9]} 48... R2a4 {[%clk 0:00:04.4]} 49. Nc1
{[%clk 0:00:14.4]} 49... R8a7 {[%clk 0:00:04.2]} 50. Rhg1 {[%clk 0:00:14.3]}
50... Ra3 {[%clk 0:00:04.5]} 51. Rc2 {[%clk 0:00:14.3]} 51... Bf8 {[%clk
0:00:03.4]} 52. Bb2 {[%clk 0:00:14.4]} 52... R3a4 {[%clk 0:00:03.2]} 53. Ne2
{[%clk 0:00:12.4]} 53... Be7 {[%clk 0:00:03.7]} 54. Nc3 {[%clk 0:00:12.1]} 54...
Ra3 {[%clk 0:00:03.3]} 55. Rcg2 {[%clk 0:00:12.5]} 55... Bd8 {[%clk 0:00:02.5]}
56. Bxa3 {[%clk 0:00:11.9]} 56... Rxa3 {[%clk 0:00:03.4]} 57. Kb2 {[%clk
0:00:12.5]} 57... Ra7 {[%clk 0:00:03.8]} 58. Be2 {[%clk 0:00:12.2]} 58... Qe7
{[%clk 0:00:03.5]} 59. Qb3 {[%clk 0:00:11.8]} 59... Qe8 {[%clk 0:00:04]} 60. Qd1
{[%clk 0:00:11.9]} 60... Be7 {[%clk 0:00:04.4]} 61. Qd2 {[%clk 0:00:11.8]} 61...
Qd8 {[%clk 0:00:04.9]} 62. Bd3 {[%clk 0:00:10.1]} 62... Kg7 {[%clk 0:00:05.3]}
63. Nd1 {[%clk 0:00:10.6]} 63... Kh7 {[%clk 0:00:05.6]} 64. Nf2 {[%clk 0:00:11]}
64... Qa8 {[%clk 0:00:05.7]} 65. Bc4 {[%clk 0:00:10.6]} 65... Ra4 {[%clk
0:00:05.6]} 66. Nd3 {[%clk 0:00:10.8]} 66... Bxb5 {[%clk 0:00:05.3]} 67. Bb3
{[%clk 0:00:08.5]} 67... Ra3 {[%clk 0:00:05.6]} 68. Qc3 {[%clk 0:00:08.1]} 68...
Ra7 {[%clk 0:00:04.8]} 69. Ne1 {[%clk 0:00:06.9]} 69... Qd8 {[%clk 0:00:05.3]}
70. Qd2 {[%clk 0:00:06.3]} 70... Kg7 {[%clk 0:00:05.4]} 71. Nc2 {[%clk
0:00:06.8]} 71... Kh7 {[%clk 0:00:05.7]} 72. Ne1 {[%clk 0:00:04.7]} 72... Bd7
{[%clk 0:00:06.1]} 73. Bc2 {[%clk 0:00:05]} 73... Kg7 {[%clk 0:00:06.5]} 74. Nd3
{[%clk 0:00:05.5]} 74... Kh7 {[%clk 0:00:07]} 75. Bd1 {[%clk 0:00:05.9]} 75...
Qa8 {[%clk 0:00:07.2]} 76. Bb3 {[%clk 0:00:05.9]} 76... Qe8 {[%clk 0:00:07.5]}
77. f4 {[%clk 0:00:05.8]} 77... exf4 {[%clk 0:00:07.6]} 78. Qxf4 {[%clk
0:00:06.7]} 78... Kg7 {[%clk 0:00:06.9]} 79. Rf2 {[%clk 0:00:06.4]} 79... Ra8
{[%clk 0:00:06.6]} 80. e5 {[%clk 0:00:05.8]} 80... dxe5 {[%clk 0:00:06.7]} 81.
Nxe5 {[%clk 0:00:06.1]} 81... Nd6 {[%clk 0:00:06.9]} 82. Qd4 {[%clk 0:00:04.2]}
82... Kh7 {[%clk 0:00:07]} 83. Nxd7 {[%clk 0:00:03.9]} 83... Qxd7 {[%clk
0:00:07.9]} 84. Bc2 {[%clk 0:00:04.3]} 84... Rg8 {[%clk 0:00:07.2]} 85. Rgf1
{[%clk 0:00:04.7]} 85... Rg7 {[%clk 0:00:07.1]} 86. Kb3 {[%clk 0:00:04.1]} 86...
Qb5 {[%clk 0:00:07.2]} 87. Rh1 {[%clk 0:00:03.7]} 87... Qd7 {[%clk 0:00:07.3]}
88. Rxh5+ {[%clk 0:00:04.2]} 88... Kg8 {[%clk 0:00:08.1]} 89. Rh1 {[%clk
0:00:04.8]} 89... Nb5 {[%clk 0:00:08.1]} 90. Qd3 {[%clk 0:00:04.7]} 90... c6
{[%clk 0:00:07.7]} 91. Rfh2 {[%clk 0:00:05.2]} 91... Qxd5+ {[%clk 0:00:07.5]}
92. Qxd5+ {[%clk 0:00:05.4]} 92... cxd5 {[%clk 0:00:08.4]} 93. Rh8+ {[%clk
0:00:05.8]} 93... Kf7 {[%clk 0:00:09]} 94. Bd3 {[%clk 0:00:06.5]} 94... Nd4+
{[%clk 0:00:09.2]} 95. Kc3 {[%clk 0:00:06.5]} 95... Nc6 {[%clk 0:00:09.4]} 96.
Rf1+ {[%clk 0:00:07.1]} 96... Ke6 {[%clk 0:00:09.9]} 97. Rg1 {[%clk 0:00:05.5]}
97... Bxb4+ {[%clk 0:00:10.1]} 98. Kb3 {[%clk 0:00:06.2]} 98... Bc5 {[%clk
0:00:10.2]} 99. Re1+ {[%clk 0:00:06.6]} 99... Ne5 {[%clk 0:00:10.7]} 100. Re8+
{[%clk 0:00:06.8]} 100... Be7 {[%clk 0:00:11]} 101. Ba6 {[%clk 0:00:05.8]}
101... Kd6 {[%clk 0:00:10.9]} 102. Bb5 {[%clk 0:00:05.4]} 102... d4 {[%clk
0:00:09.3]} 103. Rb8 {[%clk 0:00:04.6]} 103... Kc5 {[%clk 0:00:08.2]} 104. Bf1
{[%clk 0:00:04.5]} 104... Bd6 {[%clk 0:00:07.9]} 105. Rc8+ {[%clk 0:00:04.6]}
105... Kd5 {[%clk 0:00:08.4]} 106. Bg2+ {[%clk 0:00:04.8]} 106... Ke6 {[%clk
0:00:08.7]} 107. Bh3+ {[%clk 0:00:05.4]} 107... Kd5 {[%clk 0:00:08.8]} 108. Re8
{[%clk 0:00:04.7]} 108... Nd3 {[%clk 0:00:02.1]} 109. Bg2+ {[%clk 0:00:04.4]}
109... Kc5 {[%clk 0:00:02.7]} 110. Rc8+ {[%clk 0:00:04.8]} 110... Rc7 {[%clk
0:00:03.3]} 111. Rxc7+ {[%clk 0:00:04.9]} 111... Bxc7 {[%clk 0:00:04.2]} 112.
Re6 {[%clk 0:00:05.4]} 112... Ne5 {[%clk 0:00:04.6]} 113. Be4 {[%clk 0:00:05.3]}
113... d3 {[%clk 0:00:05]} 114. Bxg6 {[%clk 0:00:05.2]} 114... d2 {[%clk
0:00:05]} 115. Kc2 {[%clk 0:00:05.3]} 115... Nf3 {[%clk 0:00:05.5]} 116. Rf6
{[%clk 0:00:03.7]} 116... Nxg5 {[%clk 0:00:05.8]} 117. Be8 {[%clk 0:00:03.1]}
117... Ne4 {[%clk 0:00:05.7]} 118. Rc6+ {[%clk 0:00:03.5]} 118... Kd5 {[%clk
0:00:05.8]} 119. Rxc7 {[%clk 0:00:04.1]} 119... Kd4 {[%clk 0:00:06.7]} 120. Rd7+
{[%clk 0:00:04.2]} 120... Kc4 {[%clk 0:00:06.7]} 121. Bg6 {[%clk 0:00:04.6]}
121... Nc5 {[%clk 0:00:06.9]} 122. Rxd2 {[%clk 0:00:05.2]} 122... b5 {[%clk
0:00:07.1]} 123. Bf7+ {[%clk 0:00:05.7]} 123... Kb4 {[%clk 0:00:07.4]} 124. Rd4+
{[%clk 0:00:06]} 124... Ka5 {[%clk 0:00:08]} 125. Rh4 {[%clk 0:00:06.6]} 125...
b4 {[%clk 0:00:08.4]} 126. Rh5 {[%clk 0:00:06.9]} 126... Kb5 {[%clk 0:00:09]}
127. Be8+ {[%clk 0:00:07.3]} 127... Kb6 {[%clk 0:00:09.5]} 128. Rh6+ {[%clk
0:00:07.1]} 128... Kc7 {[%clk 0:00:09]} 129. Rc6+ {[%clk 0:00:07.5]} 1-0

[Event "*** Titled Tuesday Blitz"]
[Site "Chess.com"]
[Date "2020.05.26"]
[Round "5"]
[White "DrBergerBerger"]
[Black "Vandros57"]
[Result "1-0"]
[WhiteElo "2358"]
[BlackElo "2165"]
[TimeControl "180+1"]
[EndTime "10:50:53 PDT"]
[Termination "DrBergerBerger won by resignation"]

1. e4 {[%clk 0:03:00.9]} 1... c5 {[%clk 0:02:58.6]} 2. Nc3 {[%clk 0:03:00.5]}
2... e6 {[%clk 0:02:57.5]} 3. Nge2 {[%clk 0:02:59.8]} 3... Nc6 {[%clk
0:02:54.4]} 4. g3 {[%clk 0:02:59.6]} 4... d5 {[%clk 0:02:52.8]} 5. exd5 {[%clk
0:03:00.5]} 5... exd5 {[%clk 0:02:52.2]} 6. d4 {[%clk 0:03:01.1]} 6... Nf6
{[%clk 0:02:49.1]} 7. Bg2 {[%clk 0:03:00.2]} 7... cxd4 {[%clk 0:02:47.1]} 8.
Nxd4 {[%clk 0:03:01.1]} 8... Be7 {[%clk 0:02:45.4]} 9. O-O {[%clk 0:02:59.6]}
9... O-O {[%clk 0:02:44.7]} 10. Re1 {[%clk 0:02:48]} 10... h6 {[%clk 0:02:41.3]}
11. h3 {[%clk 0:02:38.3]} 11... Bf5 {[%clk 0:02:38.2]} 12. Nxf5 {[%clk
0:02:37.4]} 1-0

[Event "*** Titled Tuesday Blitz"]
[Site "Chess.com"]
[Date "2020.05.26"]
[Round "5"]
[White "MrMatesM"]
[Black "Xeslu"]
[Result "1-0"]
[WhiteElo "2602"]
[BlackElo "2316"]
[TimeControl "180+1"]
[EndTime "10:51:08 PDT"]
[Termination "MrMatesM won by resignation"]

1. d4 {[%clk 0:03:00.9]} 1... d5 {[%clk 0:02:57]} 2. Nc3 {[%clk 0:03:01.2]} 2...
c6 {[%clk 0:02:52.5]} 3. Bf4 {[%clk 0:03:01.6]} 3... Qb6 {[%clk 0:02:50.2]} 4.
Qd2 {[%clk 0:02:56.5]} 4... g6 {[%clk 0:02:49.1]} 5. O-O-O {[%clk 0:02:55.8]}
5... Bg7 {[%clk 0:02:48.8]} 6. f3 {[%clk 0:02:51.8]} 6... a5 {[%clk 0:02:47.9]}
7. e4 {[%clk 0:02:51.5]} 7... e6 {[%clk 0:02:43.8]} 8. h4 {[%clk 0:02:50.1]}
8... h5 {[%clk 0:02:42.9]} 9. Nh3 {[%clk 0:02:46.9]} 9... a4 {[%clk 0:02:42.8]}
10. a3 {[%clk 0:02:43.9]} 10... Qa5 {[%clk 0:02:42.6]} 11. Ng5 {[%clk
0:02:43.6]} 11... Ne7 {[%clk 0:02:28.4]} 12. Kb1 {[%clk 0:02:43.1]} 12... b5
{[%clk 0:02:27]} 13. exd5 {[%clk 0:02:28.8]} 13... Nxd5 {[%clk 0:02:25.7]} 14.
Nxd5 {[%clk 0:02:26.3]} 14... cxd5 {[%clk 0:02:22.1]} 15. Qxa5 {[%clk
0:02:26.2]} 15... Rxa5 {[%clk 0:02:21]} 16. Bxb8 {[%clk 0:02:26.9]} 1-0

[Event "*** Titled Tuesday Blitz"]
[Site "Chess.com"]
[Date "2020.05.26"]
[Round "5"]
[White "XxPetroffsxX"]
[Black "Bastiandash"]
[Result "1-0"]
[WhiteElo "1925"]
[BlackElo "2109"]
[TimeControl "180+1"]
[EndTime "10:51:50 PDT"]
[Termination "XxPetroffsxX won by resignation"]

1. e4 {[%clk 0:03:00.9]} 1... c5 {[%clk 0:02:58.7]} 2. Nf3 {[%clk 0:03:00.2]}
2... e6 {[%clk 0:02:59.6]} 3. Be2 {[%clk 0:02:59.1]} 3... a6 {[%clk 0:02:57.1]}
4. O-O {[%clk 0:02:58.3]} 4... b5 {[%clk 0:02:57.3]} 5. a4 {[%clk 0:02:57.3]}
5... b4 {[%clk 0:02:57.2]} 6. d4 {[%clk 0:02:53.3]} 6... cxd4 {[%clk 0:02:53.3]}
7. Nxd4 {[%clk 0:02:51.9]} 7... Bb7 {[%clk 0:02:53.7]} 8. Bf3 {[%clk 0:02:51.5]}
8... Qc7 {[%clk 0:02:49.9]} 9. c3 {[%clk 0:02:49]} 9... Nf6 {[%clk 0:02:36.1]}
10. Re1 {[%clk 0:02:47.5]} 10... d5 {[%clk 0:02:32.7]} 11. exd5 {[%clk
0:02:36.6]} 11... Nxd5 {[%clk 0:02:09.2]} 12. Qb3 {[%clk 0:02:18]} 12... a5
{[%clk 0:01:55.5]} 13. Bxd5 {[%clk 0:02:12.4]} 13... Bxd5 {[%clk 0:01:53.7]} 14.
Qxd5 {[%clk 0:02:09.7]} 1-0

[Event "*** Titled Tuesday Blitz"]
[Site "Chess.com"]
[Date "2020.05.26"]
[Round "5"]
[White "The_Machine04"]
[Black "KacperPolOK"]
[Result "1-0"]
[WhiteElo "2299"]
[BlackElo "2406"]
[TimeControl "180+1"]
[EndTime "10:52:15 PDT"]
[Termination "The_Machine04 won by resignation"]

1. d4 {[%clk 0:02:51.5]} 1... e6 {[%clk 0:02:56.8]} 2. Nf3 {[%clk 0:02:45.2]}
2... f5 {[%clk 0:02:56.2]} 3. Bg5 {[%clk 0:02:40.9]} 3... Nf6 {[%clk 0:02:54.3]}
4. Nc3 {[%clk 0:02:39]} 4... Be7 {[%clk 0:02:52.4]} 5. Bxf6 {[%clk 0:02:37]}
5... Bxf6 {[%clk 0:02:49.6]} 6. e4 {[%clk 0:02:37.2]} 6... fxe4 {[%clk
0:02:44.1]} 7. Nxe4 {[%clk 0:02:38.1]} 7... O-O {[%clk 0:02:42.9]} 8. Bd3 {[%clk
0:02:37.3]} 8... b6 {[%clk 0:02:42.7]} 9. Qe2 {[%clk 0:02:34.1]} 9... Bb7 {[%clk
0:02:43]} 10. c3 {[%clk 0:02:33.4]} 10... Nc6 {[%clk 0:02:40.2]} 11. h4 {[%clk
0:02:30.1]} 11... Ne7 {[%clk 0:02:39.7]} 12. Neg5 {[%clk 0:02:25.4]} 12... h6
{[%clk 0:02:37.7]} 13. Ne4 {[%clk 0:02:22.8]} 13... Nd5 {[%clk 0:02:31.5]} 14.
g3 {[%clk 0:02:15.4]} 14... Be7 {[%clk 0:02:28.7]} 15. O-O-O {[%clk 0:02:05.9]}
15... Nf6 {[%clk 0:02:27.2]} 16. Nfd2 {[%clk 0:01:55]} 16... Nxe4 {[%clk
0:02:24.5]} 17. Nxe4 {[%clk 0:01:55.9]} 17... Bxe4 {[%clk 0:02:20]} 18. Qxe4
{[%clk 0:01:53.9]} 18... Rf5 {[%clk 0:02:11.7]} 19. g4 {[%clk 0:01:51.3]} 19...
d5 {[%clk 0:02:11.6]} 20. Qxe6+ {[%clk 0:01:49.5]} 20... Rf7 {[%clk 0:02:10.6]}
21. Bg6 {[%clk 0:01:48.6]} 1-0

[Event "*** Titled Tuesday Blitz"]
[Site "Chess.com"]
[Date "2020.05.26"]
[Round "5"]
[White "mohssenbinaddi"]
[Black "manmanlai1"]
[Result "0-1"]
[WhiteElo "2185"]
[BlackElo "2364"]
[TimeControl "180+1"]
[EndTime "10:52:20 PDT"]
[Termination "manmanlai1 won by resignation"]

1. d4 {[%clk 0:03:00.9]} 1... d5 {[%clk 0:02:59.5]} 2. Nf3 {[%clk 0:03:01.8]}
2... e6 {[%clk 0:02:59.3]} 3. g3 {[%clk 0:03:01.9]} 3... c5 {[%clk 0:02:56.4]}
4. Bg2 {[%clk 0:03:02.8]} 4... Nc6 {[%clk 0:02:54.2]} 5. O-O {[%clk 0:03:02.2]}
5... Nf6 {[%clk 0:02:51.4]} 6. c4 {[%clk 0:03:02.4]} 6... Be7 {[%clk 0:02:49.7]}
7. dxc5 {[%clk 0:03:00.3]} 7... O-O {[%clk 0:02:48.1]} 8. cxd5 {[%clk
0:02:59.4]} 8... exd5 {[%clk 0:02:49]} 9. Bg5 {[%clk 0:02:58.1]} 9... h6 {[%clk
0:02:47.3]} 10. Bxf6 {[%clk 0:02:54.1]} 10... Bxf6 {[%clk 0:02:48.2]} 11. Nc3
{[%clk 0:02:54.2]} 11... Be6 {[%clk 0:02:45]} 12. Rc1 {[%clk 0:02:51.1]} 12...
Rc8 {[%clk 0:02:44.4]} 13. a3 {[%clk 0:02:50]} 13... Qa5 {[%clk 0:02:41.6]} 14.
e3 {[%clk 0:02:32.6]} 14... Qxc5 {[%clk 0:02:37.4]} 15. Ne4 {[%clk 0:02:23.6]}
15... Qe7 {[%clk 0:02:37.4]} 16. Nxf6+ {[%clk 0:02:22.9]} 16... Qxf6 {[%clk
0:02:38.3]} 17. Qa4 {[%clk 0:02:17.7]} 17... a6 {[%clk 0:02:34.4]} 18. b4 {[%clk
0:02:13.3]} 18... Bg4 {[%clk 0:02:25.1]} 19. b5 {[%clk 0:02:06.1]} 19... Bxf3
{[%clk 0:02:17.6]} 20. Bxf3 {[%clk 0:02:02.8]} 20... axb5 {[%clk 0:02:11.6]} 21.
Qg4 {[%clk 0:01:53.7]} 21... Ne5 {[%clk 0:02:09.7]} 22. Qxc8 {[%clk 0:01:44.3]}
0-1

[Event "*** Titled Tuesday Blitz"]
[Site "Chess.com"]
[Date "2020.05.26"]
[Round "5"]
[White "MartinMatthiesen"]
[Black "theblitzchamp"]
[Result "0-1"]
[WhiteElo "2371"]
[BlackElo "2680"]
[TimeControl "180+1"]
[EndTime "10:52:26 PDT"]
[Termination "theblitzchamp won by resignation"]

1. d4 {[%clk 0:03:00.9]} 1... Nf6 {[%clk 0:02:58.5]} 2. c4 {[%clk 0:03:00.4]}
2... g6 {[%clk 0:02:58.7]} 3. Nc3 {[%clk 0:02:59.8]} 3... Bg7 {[%clk 0:02:59.3]}
4. Nf3 {[%clk 0:02:58.1]} 4... d6 {[%clk 0:02:59.6]} 5. g3 {[%clk 0:02:58.1]}
5... O-O {[%clk 0:03:00.5]} 6. Bg2 {[%clk 0:02:58.3]} 6... Nbd7 {[%clk
0:03:01.4]} 7. O-O {[%clk 0:02:58.6]} 7... e5 {[%clk 0:03:02.3]} 8. h3 {[%clk
0:02:56.8]} 8... exd4 {[%clk 0:03:03.2]} 9. Nxd4 {[%clk 0:02:56.5]} 9... Re8
{[%clk 0:03:04.1]} 10. e4 {[%clk 0:02:55.7]} 10... Nc5 {[%clk 0:03:04.4]} 11.
Re1 {[%clk 0:02:55]} 11... a5 {[%clk 0:03:04.7]} 12. Ndb5 {[%clk 0:02:54.8]}
12... Bd7 {[%clk 0:03:04]} 13. Be3 {[%clk 0:02:50.6]} 13... Qc8 {[%clk
0:03:02.7]} 14. Qc2 {[%clk 0:02:37.3]} 14... Bxh3 {[%clk 0:02:23.5]} 15. Bxh3
{[%clk 0:02:25.1]} 15... Qxh3 {[%clk 0:02:24.4]} 16. Nxc7 {[%clk 0:02:25.1]}
16... Ng4 {[%clk 0:02:22.9]} 17. f3 {[%clk 0:02:09.6]} 17... Nxe3 {[%clk
0:02:10.5]} 18. Rxe3 {[%clk 0:02:09]} 18... Bd4 {[%clk 0:02:11.1]} 19. Nd1
{[%clk 0:01:44.8]} 19... Qxg3+ {[%clk 0:02:04.5]} 20. Qg2 {[%clk 0:01:44.4]}
20... Qe1+ {[%clk 0:02:03.2]} 0-1

[Event "*** Titled Tuesday Blitz"]
[Site "Chess.com"]
[Date "2020.05.26"]
[Round "5"]
[White "Alexandercs432"]
[Black "maximnovik"]
[Result "0-1"]
[WhiteElo "2129"]
[BlackElo "2466"]
[TimeControl "180+1"]
[EndTime "10:52:31 PDT"]
[Termination "maximnovik won by resignation"]

1. e4 {[%clk 0:03:00.9]} 1... c6 {[%clk 0:02:57.9]} 2. d4 {[%clk 0:03:00.1]}
2... d5 {[%clk 0:02:58.1]} 3. e5 {[%clk 0:03:00.5]} 3... Bf5 {[%clk 0:02:57.5]}
4. h4 {[%clk 0:03:00.1]} 4... h6 {[%clk 0:02:56.9]} 5. g4 {[%clk 0:02:58.9]}
5... Bd7 {[%clk 0:02:56.3]} 6. h5 {[%clk 0:02:58.9]} 6... c5 {[%clk 0:02:55.6]}
7. c3 {[%clk 0:02:58.1]} 7... Nc6 {[%clk 0:02:54.8]} 8. f4 {[%clk 0:02:56.1]}
8... Qb6 {[%clk 0:02:53.1]} 9. f5 {[%clk 0:02:24.1]} 9... cxd4 {[%clk
0:02:50.9]} 10. Nf3 {[%clk 0:02:16.1]} 10... e6 {[%clk 0:02:29.2]} 11. fxe6
{[%clk 0:02:11.4]} 11... Bxe6 {[%clk 0:02:29]} 12. cxd4 {[%clk 0:02:07.5]} 12...
Bxg4 {[%clk 0:02:27]} 13. Nc3 {[%clk 0:01:40]} 13... O-O-O {[%clk 0:02:25.4]}
14. Be3 {[%clk 0:01:29.2]} 14... Qxb2 {[%clk 0:02:21]} 15. Nb5 {[%clk
0:01:22.5]} 15... Bb4+ {[%clk 0:02:13.5]} 0-1

[Event "*** Titled Tuesday Blitz"]
[Site "Chess.com"]
[Date "2020.05.26"]
[Round "5"]
[White "Chess_Boxer123"]
[Black "lelya96"]
[Result "1-0"]
[WhiteElo "2691"]
[BlackElo "2269"]
[TimeControl "180+1"]
[EndTime "10:52:34 PDT"]
[Termination "Chess_Boxer123 won by resignation"]

1. d4 {[%clk 0:03:00.9]} 1... d5 {[%clk 0:02:59.4]} 2. c4 {[%clk 0:03:00.8]}
2... c6 {[%clk 0:02:59.4]} 3. Nc3 {[%clk 0:03:00.6]} 3... Nf6 {[%clk 0:02:59.5]}
4. cxd5 {[%clk 0:02:57.1]} 4... cxd5 {[%clk 0:02:59.1]} 5. Bf4 {[%clk
0:02:57.6]} 5... a6 {[%clk 0:02:58.3]} 6. e3 {[%clk 0:02:57.1]} 6... Nc6 {[%clk
0:02:58.2]} 7. Rc1 {[%clk 0:02:53.1]} 7... g6 {[%clk 0:02:57.9]} 8. Nf3 {[%clk
0:02:51.9]} 8... Bg7 {[%clk 0:02:58]} 9. h3 {[%clk 0:02:52.5]} 9... O-O {[%clk
0:02:58]} 10. Bd3 {[%clk 0:02:53.1]} 10... Re8 {[%clk 0:02:54.9]} 11. O-O {[%clk
0:02:53.5]} 11... Bd7 {[%clk 0:02:54.4]} 12. Na4 {[%clk 0:02:50.8]} 12... b6
{[%clk 0:02:49.9]} 13. Ne5 {[%clk 0:02:49.9]} 13... Nxe5 {[%clk 0:02:46.8]} 14.
Bxe5 {[%clk 0:02:50.8]} 14... Rc8 {[%clk 0:02:35.2]} 15. Rxc8 {[%clk 0:02:45.7]}
15... Bxc8 {[%clk 0:02:33.8]} 16. Qb3 {[%clk 0:02:43.4]} 16... b5 {[%clk
0:02:30.9]} 17. Nc5 {[%clk 0:02:43.1]} 17... e6 {[%clk 0:02:21.9]} 18. a4 {[%clk
0:02:40]} 18... bxa4 {[%clk 0:02:13.7]} 19. Qxa4 {[%clk 0:02:38.9]} 19... Nd7
{[%clk 0:02:14.6]} 20. Bxg7 {[%clk 0:02:29.1]} 20... Kxg7 {[%clk 0:01:48.9]} 21.
b4 {[%clk 0:02:19.6]} 21... Nb6 {[%clk 0:01:43.6]} 22. Qc6 {[%clk 0:02:19.3]}
22... Nc4 {[%clk 0:01:37.4]} 23. Bxc4 {[%clk 0:02:12.5]} 23... dxc4 {[%clk
0:01:37.6]} 24. Rc1 {[%clk 0:02:12]} 24... Qd5 {[%clk 0:01:37.6]} 25. Qxe8
{[%clk 0:02:11.5]} 1-0

[Event "*** Titled Tuesday Blitz"]
[Site "Chess.com"]
[Date "2020.05.26"]
[Round "5"]
[White "Malysch"]
[Black "Witik"]
[Result "0-1"]
[WhiteElo "2452"]
[BlackElo "2665"]
[TimeControl "180+1"]
[EndTime "10:52:52 PDT"]
[Termination "Witik won by resignation"]

1. d4 {[%clk 0:03:00.9]} 1... Nf6 {[%clk 0:02:57.6]} 2. c4 {[%clk 0:03:00.6]}
2... g6 {[%clk 0:02:57.7]} 3. g3 {[%clk 0:03:00.6]} 3... Bg7 {[%clk 0:02:58.1]}
4. Bg2 {[%clk 0:03:01.3]} 4... O-O {[%clk 0:02:58]} 5. Nf3 {[%clk 0:03:01.9]}
5... d6 {[%clk 0:02:58.5]} 6. O-O {[%clk 0:03:01.8]} 6... Nc6 {[%clk 0:02:59.2]}
7. Nc3 {[%clk 0:03:02.2]} 7... a6 {[%clk 0:02:59.2]} 8. Bf4 {[%clk 0:03:02.1]}
8... Rb8 {[%clk 0:02:53.2]} 9. Rc1 {[%clk 0:03:01.1]} 9... e6 {[%clk 0:02:50.8]}
10. Qd2 {[%clk 0:02:40.8]} 10... Ne7 {[%clk 0:02:45.6]} 11. Rfd1 {[%clk
0:02:37.5]} 11... b5 {[%clk 0:02:43.5]} 12. c5 {[%clk 0:02:36.1]} 12... Bb7
{[%clk 0:02:39.3]} 13. Bh6 {[%clk 0:02:02.6]} 13... b4 {[%clk 0:02:24.6]} 14.
Bxg7 {[%clk 0:01:06.9]} 14... bxc3 {[%clk 0:02:21.2]} 15. Qh6 {[%clk 0:00:51.4]}
15... Nf5 {[%clk 0:02:20.7]} 16. Bxf8 {[%clk 0:00:51.3]} 16... Nxh6 {[%clk
0:02:20.6]} 17. Bxh6 {[%clk 0:00:52.2]} 17... cxb2 {[%clk 0:02:20.8]} 18. Rb1
{[%clk 0:00:52.1]} 18... Be4 {[%clk 0:02:21.1]} 0-1